[Event "34th GER-ch Seniors-65 2022"]
[Site "Magdeburg"]
[Date "2022.08.15"]
[Round "4.1"]
[White "Beilfuss, Wilfried"]
[Black "Boidman, Yuri"]
[Result "0-1"]
[ECO "A11"]
[WhiteElo "2154"]
[BlackElo "2286"]
[Annotator "TA"]
[PlyCount "110"]
[EventDate "2022.08.12"]
[EventType "swiss"]
[EventCountry "GER"]
[SourceTitle "playchess.com"]
[Source "ChessBase"]
[SourceQuality "1"]
[TimeControl "40/5400+30:1800+30"]

{[%evp 19,110,37,29,15,27,0,0,15,6,3,0,0,22,0,0,0,2,0,0,0,6,-56,-52,-114,-106,-168,-169,-169,-169,-212,-163,-155,-131,-138,-139,-147,-145,-158,-142,-165,-142,-139,0,-115,-14,-142,-137,-97,-85,-251,-222,-390,-62,-97,-97,-97,-63,-63,-63,-183,-183,-183,-183,-354,-288,-284,-151,-151,0,-268,-219,-271,-269,-279,-245,-300,-290,-477,-151,-144,0,-452,-450,-388,-381,-339,-337,-868,-701,-2031,-851,-1962,-206]} 1. g3 {[%emt 0:00:07]} d5 {[%emt 0:00:22]} 2. Nf3 {[%emt 0:00:09]} Nf6 {[%emt 0:00:08]} 3. Bg2 {[%emt 0:00:06]} Bf5 {[%emt 0:00:14]} 4. O-O {[%emt 0:00:26]} e6 {[%emt 0:00:08]} 5. c4 {[%emt 0:02:04]} c6 {[%emt 0:00:11]} 6. cxd5 {[%emt 0:06:29]} cxd5 {[%emt 0:01:15]} 7. Qb3 {[%emt 0:00:52]} Qb6 {[%emt 0:01:54]} 8. Qxb6 {[%emt 0:01:28]} axb6 {[%emt 0:00:10]} 9. Nc3 {[%emt 0:03:32]} Nc6 {[%emt 0:00:20]} 10. d3 {[%emt 0:00:44][%cal Bd2d3,Bd3d4][%mdl 32]} Be7 {[%emt 0:02:57]} 11. Nb5 {[%emt 0:03:38] A11: English Opening: 1...c6.} O-O {[%emt 0:01:55]} 12. Bd2 {[%emt 0:02:38]} Rfc8 {[%emt 0:01:48]} 13. Rfc1 {[%emt 0:06:07] [#] The position is equal.} e5 $146 {[%emt 0:05:21]} ({Predecessor:} 13... h6 14. a3 Nd7 15. Nfd4 Bg6 16. Bh3 Nxd4 17. Nxd4 Nc5 18. Be3 Bf6 19. Rab1 Kf8 {0-1 (74) Stewart,A (2146)-Jaracz,B (2199) Daventry 2019}) 14. d4 {[%emt 0:06:00]} e4 {[%emt 0:02:09]} 15. Ne1 {[%emt 0:02:32]} Bg4 {[%emt 0:01:12]} 16. Bf1 {[%emt 0:05:37]} (16. f3 $5 {[%cal Rf3g4]} Bd7 17. Nc2 $11) 16... h6 {[%emt 0:04:00]} 17. Nc2 {[%emt 0:05:47]} Bd7 {[%emt 0:03:56]} 18. e3 {[%emt 0:07:12]} Nh7 {[%emt 0:07:40][%cal Bf6h7,Bh7g5,Bg5e4,Be4g3][%mdl 32]} 19. Nc3 {[%emt 0:05:53]} Be6 {[%emt 0:02:11]} 20. f3 {[%emt 0:02:02]} ({White should try} 20. Bb5 $11) 20... exf3 $15 {[%emt 0:08:03]} 21. Ne1 {[%emt 0:00:25]} (21. Kf2 $15) 21... Ng5 $17 {[%emt 0:00:45]} 22. h4 {[%emt 0:01:15]} (22. Bd3 $17) 22... Ne4 $19 {[%emt 0:00:48]} 23. Nxf3 {[%emt 0:01:51]} Nxg3 {[%emt 0:00:33]} 24. Bg2 {[%emt 0:01:10]} Ne4 {[%emt 0:02:55]} 25. Be1 {[%emt 0:01:43]} f5 {[%emt 0:05:44] Black is much more active.} 26. Nb5 {[%emt 0:07:58]} g5 {[%emt 0:06:45]} 27. hxg5 {[%emt 0:00:17]} hxg5 {[%emt 0:00:10][%cal Bh6g5,Bg5g4][%mdl 32]} 28. a3 {[%emt 0:01:28]} g4 {[%emt 0:05:45]} 29. Nh2 {[%emt 0:01:18]} Bg5 {[%emt 0:04:04]} 30. Nf1 {[%emt 0:00:25]} Be7 {[%emt 0:14:03]} (30... Bd7 $17 31. Bxe4 dxe4) 31. Ng3 {[%emt 0:02:03]} (31. Nh2 $1 $11) 31... Kf7 {[%emt 0:03:37]} ({Black should play} 31... Bf6 $17 32. Bxe4 dxe4) 32. Nxe4 {[%emt 0:02:06]} (32. Bxe4 $11 {remains equal.} fxe4 33. Ne2) 32... dxe4 $17 {[%emt 0:00:12]} (32... fxe4 33. Bg3 $15) 33. Bg3 {[%emt 0:00:19]} Na5 $36 {[%emt 0:01:14][%mdl 2048] White is under strong pressure.} 34. Nc7 $2 {[%emt 0:02:01]} (34. Rf1 $17 {is a better defense.}) 34... Nb3 $1 $19 {[%emt 0:00:57][%csl LRa1,LRc1]} ({Inferior is} 34... Bg5 35. Rc3 $11) 35. Nxa8 $2 {[%emt 0:00:24]} (35. d5 Bxd5 36. Rf1) 35... Rxa8 $2 {[%emt 0:05:52]} (35... Rxc1+ $2 {perishes.} 36. Rxc1 Nxc1 37. Nxb6 $19) (35... Nxc1 $19 36. d5 (36. Nxb6 $2 Ne2+ 37. Kf2 Rc2 $19) 36... Ne2+ 37. Kf2 Nxg3 38. dxe6+ Kxe6 39. Kxg3 Rxa8) 36. Rab1 {[%emt 0:00:26] And now Rc7 would win.} Nxc1 {[%emt 0:00:06]} 37. Rxc1 {[%emt 0:00:05]} Rc8 {[%emt 0:00:17]} 38. Rxc8 {[%emt 0:00:23]} Bxc8 $15 {[%emt 0:00:02][%mdl 4096] Endgame KBB-KBB} 39. Bc7 {[%emt 0:00:52]} ({Only move:} 39. Bf1 $1 $15) 39... b5 $19 {[%emt 0:00:35]} 40. Bf1 {[%emt 0:00:59]} Bd7 {[%emt 0:01:06]} 41. b4 $2 {[%emt 0:32:13]} (41. Kf2) 41... Bg5 {[%emt 0:35:10]} 42. Kf2 {[%emt 0:00:30]} Bh4+ {[%emt 0:00:07]} (42... Ke6 $19 {aiming for ...Kd5.} 43. Be2 Kd5) 43. Bg3 $17 {[%emt 0:02:28]} Bg5 {[%emt 0:00:06]} (43... Be7 $17 {...Bg5 is the strong threat.} 44. Ke1 Ke6) 44. Be2 $2 {[%emt 0:02:15][%mdl 8192]} (44. Bc7 $1 $11) 44... Bc6 {[%emt 0:00:24]} 45. Bb8 {[%emt 0:13:38]} Ke6 {[%emt 0:00:33]} 46. Bg3 {[%emt 0:00:34]} Kd5 {[%emt 0:00:10]} 47. Be5 {[%emt 0:00:00]} Bd7 {[%emt 0:00:00]} 48. Bb8 $2 {[%emt 0:00:00] [#]} (48. Bf1 {only move.}) 48... Bh6 $2 {[%emt 0:00:00]} (48... f4 $1 $19 49. exf4 Bh4+ 50. Ke3 Be1) 49. Be5 {[%emt 0:00:00]} Bg5 $2 {[%emt 0:00:00][%mdl 8192]} (49... Kc6 $17 50. Bd1 Be6) 50. Bb8 $1 $19 {[%emt 0:00:00] [#]} f4 $1 {[%emt 0:00:00]} 51. exf4 {[%emt 0:00:00]} Bh4+ {[%emt 0:00:00]} 52. Ke3 {[%emt 0:00:00]} Be1 {[%emt 0:00:00]} 53. Be5 $2 {[%emt 0:00:00]} (53. f5 g3 54. Bg4) 53... g3 {[%emt 0:00:00] ( -> ...g2). Black is clearly winning.} 54. Bf1 {[%emt 0:00:00]} Bf2+ {[%emt 0:00:00]} 55. Ke2 {[%emt 0:00:00]} Bg4+ {[%emt 0:00:00] Weighted Error Value: White=0.71/Black=0.48} 0-1

[Event "34th GER-ch Seniors-65 2022"]
[Site "Magdeburg"]
[Date "2022.08.15"]
[Round "4.6"]
[White "Klundt, Klaus"]
[Black "Kuhn, Gerd"]
[Result "1-0"]
[ECO "B11"]
[WhiteElo "2288"]
[BlackElo "2049"]
[Annotator "TA"]
[PlyCount "55"]
[EventDate "2022.08.12"]
[EventType "swiss"]
[EventCountry "GER"]
[SourceTitle "playchess.com"]
[Source "ChessBase"]
[SourceQuality "1"]
[TimeControl "40/5400+30:1800+30"]

{[%evp 9,55,22,27,33,72,24,57,31,45,30,70,48,57,53,97,95,143,83,230,223,404,194,200,177,192,152,155,126,180,110,76,57,45,58,47,33,191,160,771,243,675,641,29988,29989,29989,29990,29996,29993]} 1. e4 {[%emt 0:00:01][%cal Be2e4,Be4e5][%mdl 32]} c6 {[%emt 0:00:05]} 2. Nc3 {[%emt 0:00:14]} d5 {[%emt 0:00:25]} 3. Nf3 {[%emt 0:00:12]} Nf6 {[%emt 0:01:36]} 4. e5 {[%emt 0:00:50]} Ne4 {[%emt 0:00:08]} 5. Ne2 {[%emt 0:00:09]} Qb6 {[%emt 0:07:17][%csl Ge4][%cal Rb6f2] [#]} 6. d4 {[%emt 0:01:37] B11: Caro-Kann: Two Knights Variation.} h6 {[%emt 0:08:22]} 7. Ng3 {[%emt 0:02:35]} (7. c3 $16) 7... Bg4 {[%emt 0:06:00] [#]} 8. Bd3 $146 {[%emt 0:01:19] White is slightly better.} (8. c3 $5 {[%cal Rg3e4]}) ({Predecessor:} 8. c3 e6 9. Bd3 Nxg3 10. hxg3 c5 11. Qa4+ Nc6 12. dxc5 Bxc5 13. Qxg4 Bxf2+ 14. Ke2 {1-0 (24) Munguntuul,B (2428)-Chandreyee,H (1925) Chennai 2019}) 8... Ng5 {[%emt 0:03:38]} 9. h4 {[%emt 0:07:08]} Ne6 {[%emt 0:08:01]} 10. Be3 {[%emt 0:05:24] Active counter play!} Qxb2 {[%emt 0:09:57]} 11. O-O {[%emt 0:02:03]} Qb6 {[%emt 0:01:46]} 12. c4 {[%emt 0:02:18] cxd5 is the strong threat.} Qd8 {[%emt 0:04:56]} ({Black should play} 12... Nd8) 13. Rb1 {[%emt 0:02:32]} (13. cxd5 $142 Qxd5 14. Qb1) 13... Nc7 {[%emt 0:01:14]} (13... dxc4 $16 14. Be4 (14. Bxc4 b5 $14) 14... Qd7) 14. Rxb7 $18 {[%emt 0:01:40][%cal Oe5e6]} Bc8 {[%emt 0:09:04] [#]} (14... Qc8) 15. Rb2 {[%emt 0:05:50]} (15. e6 $142 $1 Bxb7 (15... Bxe6 16. Bf4) 16. Ne5) 15... e6 {[%emt 0:05:30]} 16. Qa4 {[%emt 0:04:45]} Ba6 {[%emt 0:09:42]} 17. Rfb1 {[%emt 0:01:16][%cal Oc4d5] aiming for cxd5!} Be7 {[%emt 0:03:56]} 18. Bd2 {[%emt 0:01:33]} (18. Rxb8 Rxb8 19. Qxc6+ Kf8 20. Rxb8 Qxb8 $17) 18... O-O {[%emt 0:01:04]} (18... dxc4 $16 19. Bxc4 (19. Rxb8 Rxb8 20. Rxb8 Qxb8 $17) 19... Bxc4 20. Qxc4 Nd5) 19. Ba5 {[%emt 0:00:32]} (19. Re1 $18) 19... dxc4 $16 {[%emt 0:04:51]} 20. Bxc4 {[%emt 0:00:54]} (20. Be4 {is more complex.} Qc8 21. Bxc7 Qxc7 22. Rc1) 20... Bxc4 {[%emt 0:00:12]} 21. Bxc7 {[%emt 0:06:06]} Qxc7 {[%emt 0:00:04]} 22. Qxc4 {[%emt 0:00:18][%cal Od4d5] Strongly threatening d5!} Qa5 {[%emt 0:01:32] Against d5} (22... Nd7 $14) 23. Rb7 $18 {[%emt 0:01:34]} Ba3 {[%emt 0:00:15]} (23... Qd8 $16 24. Nh5 Bxh4) 24. Ne4 $2 {[%emt 0:01:33]} (24. d5 Na6 25. Qg4) 24... Qd5 $2 {[%emt 0:02:40]} (24... Qd8 25. g4 Nd7) 25. Qd3 {[%emt 0:00:45] White wants to mate with Neg5.} c5 {[%emt 0:07:06]} 26. Neg5 {[%emt 0:01:04] White mates.} ({Weaker is} 26. Nd6 Bb4 27. a3 Ba5 $18) 26... hxg5 {[%emt 0:00:57]} 27. Nxg5 {[%emt 0:00:02][%csl Gg5][%cal Rd3h7]} g6 {[%emt 0:01:05]} 28. Nxf7 {[%emt 0:00:13][%mdl 64] Remove Defender.  Weighted Error Value: White=0.57/Black=0.94} 1-0

[Event "34th GER-ch Seniors-65 2022"]
[Site "Magdeburg"]
[Date "2022.08.15"]
[Round "4.7"]
[White "Polster, Wolfgang"]
[Black "Blab, Ludwig"]
[Result "1-0"]
[ECO "B22"]
[WhiteElo "2237"]
[BlackElo "2033"]
[Annotator "TA"]
[PlyCount "71"]
[EventDate "2022.08.12"]
[EventType "swiss"]
[EventCountry "GER"]
[SourceTitle "playchess.com"]
[Source "ChessBase"]
[SourceQuality "1"]
[TimeControl "40/5400+30:1800+30"]

{[%evp 19,71,30,65,68,181,178,170,159,308,312,313,307,301,278,300,217,546,522,448,143,145,134,136,122,130,137,292,291,273,235,289,288,331,330,316,304,278,297,282,283,426,422,29972,29957,29984,4902,4886,746,791,745,727,735,717,706]} 1. e4 {[%emt 0:00:22]} e6 {[%emt 0:00:10]} 2. d4 {[%emt 0:00:37]} d5 {[%emt 0:00:10]} 3. Nd2 {[%emt 0:00:51][%cal Bb1d2,Bd2e4,Be4c3][%mdl 32]} c5 {[%emt 0:01:09]} 4. Ngf3 {[%emt 0:00:46]} Nc6 {[%emt 0:02:01]} 5. c3 {[%emt 0:02:36]} cxd4 {[%emt 0:02:21]} 6. cxd4 {[%emt 0:00:26]} dxe4 {[%emt 0:00:46]} 7. Nxe4 {[%emt 0:00:22]} Nf6 {[%emt 0:01:00]} 8. Bd3 {[%emt 0:04:06][%cal Bf1d3,Bd3c2,Bc2a4][%mdl 32]} Qd5 {[%emt 0:08:49]} 9. Nc3 {[%emt 0:02:15]} Bb4 {[%emt 0:08:17]} 10. O-O {[%emt 0:00:40]} Qd8 {[%emt 0:00:54]} 11. Bc2 {[%emt 0:20:46] [#] B22: Sicilian: 2 c3.} b6 $146 {[%emt 0:02:17]} (11... h6 $14) ({Predecessor:} 11... O-O 12. Qd3 Be7 13. a3 b6 14. Bg5 g6 15. Rfe1 Bb7 16. Rad1 Rc8 17. Bb3 Qc7 18. d5 Nxd5 19. Bxd5 Rfd8 20. Qe3 Bxg5 21. Qxg5 exd5 22. Nxd5 Rxd5 23. Rxd5 Na5 24. Rde5 {1-0 (23) Paichadze,L (2572)-Hossain,D (2102) Dhaka 2017}) 12. Ba4 $18 {[%emt 0:06:14]} Bd7 {[%emt 0:13:33]} 13. d5 {[%emt 0:02:01] White is clearly better.} Ne7 {[%emt 0:07:21]} (13... Nb8 $16 {was worth a try.}) 14. dxe6 {[%emt 0:06:23]} fxe6 {[%emt 0:00:48]} 15. Ne5 {[%emt 0:02:36]} Bxc3 {[%emt 0:02:14]} 16. bxc3 {[%emt 0:00:34]} b5 {[%emt 0:04:44]} 17. Nxd7 {[%emt 0:02:13]} bxa4 $2 {[%emt 0:00:29] [#]} (17... Qxd7 {is tougher.} 18. Qxd7+ Nxd7) 18. Nxf6+ {[%emt 0:01:13]} gxf6 {[%emt 0:00:18]} 19. Qxa4+ {[%emt 0:03:41]} (19. Qh5+ $18 Ng6 20. Rd1) 19... Qd7 $16 {[%emt 0:01:23]} 20. Qxd7+ {[%emt 0:05:28]} Kxd7 {[%emt 0:00:02]} 21. Rd1+ {[%emt 0:00:47]} Kc6 {[%emt 0:02:04]} 22. Ba3 {[%emt 0:00:29]} Nd5 {[%emt 0:04:13] A mistake that costs the game.} (22... Nf5 $16 23. Re1 e5) 23. c4 $18 {[%emt 0:00:46]} Nc7 {[%emt 0:00:13]} 24. Rd6+ {[%emt 0:00:42]} Kb7 {[%emt 0:00:02]} 25. Rad1 {[%emt 0:01:53]} a5 {[%emt 0:02:11]} 26. Rd7 {[%emt 0:08:10]} Ra6 {[%emt 0:00:41]} 27. Bd6 {[%emt 0:00:48]} Rc6 {[%emt 0:00:47]} 28. c5 {[%emt 0:01:10]} Kc8 {[%emt 0:05:14]} 29. Rf7 {[%emt 0:01:25]} f5 {[%emt 0:08:51]} (29... Nb5 $142 30. Be7 (30. Rxf6 Rd8 $18) 30... Rc7) 30. Rb1 {[%emt 0:02:28] [#] Hoping for Rb6.} h5 {[%emt 0:05:24]} (30... Rd8 $18 31. h4 Rd7) 31. Rb6 {[%emt 0:00:29]} Rxb6 {[%emt 0:07:17]} 32. cxb6 {[%emt 0:00:33]} (32. Rxc7+ $142 Kb8 33. cxb6 Rd8 34. Rd7+ Kc8 35. Rxd8+ Kb7 36. Bc5 f4 37. Rd7+ Kc6 38. Rc7+ Kd5 39. b7) 32... Na6 {[%emt 0:00:16] White is clearly winning.} 33. b7+ {[%emt 0:00:34]} (33. Ra7 $142 Nb8 34. Rc7+ Kd8 35. Be7+ Ke8 36. Rc8+ Kxe7 37. Rxh8) 33... Kd8 {[%emt 0:00:02]} 34. b8=Q+ {[%emt 0:00:47]} Nxb8 {[%emt 0:00:16]} 35. Bxb8 {[%emt 0:00:04]} Ke8 {[%emt 0:00:11]} 36. Ra7 {[%emt 0:00:55] Weighted Error Value: White=0.22 (precise) /Black=0.94} 1-0

[Event "34th GER-ch Seniors-65 2022"]
[Site "Magdeburg"]
[Date "2022.08.15"]
[Round "4.9"]
[White "Gries, Volker"]
[Black "Schulz, Michael"]
[Result "1-0"]
[ECO "A05"]
[WhiteElo "2050"]
[BlackElo "2217"]
[Annotator "TA"]
[PlyCount "95"]
[EventDate "2022.08.12"]
[EventType "swiss"]
[EventCountry "GER"]
[SourceTitle "playchess.com"]
[Source "ChessBase"]
[SourceQuality "1"]
[TimeControl "40/5400+30:1800+30"]

{[%evp 12,95,14,14,18,-33,-27,-33,-29,-42,-37,-43,-11,-29,-20,-22,-25,-22,-2,-23,0,0,0,0,25,0,160,157,233,224,226,229,221,221,238,135,138,156,145,137,138,75,175,36,166,109,385,83,90,127,107,0,0,0,0,-454,-448,-421,0,0,979,945,1612,1443,1389,662,456,613,623,345,6070,5310,12813,387,29979,29974,29989,29990,29990,29991,29991,29992,29992,29993,29994,29995]} 1. Nf3 {[%emt 0:00:06]} Nf6 {[%emt 0:00:28]} 2. g3 {[%emt 0:00:10]} b5 {[%emt 0:00:40]} 3. Bg2 {[%emt 0:00:08]} Bb7 {[%emt 0:00:03]} 4. O-O {[%emt 0:00:17]} e6 {[%emt 0:00:06]} 5. d3 {[%emt 0:00:10]} d5 {[%emt 0:00:21]} 6. Nbd2 {[%emt 0:00:16]} Be7 {[%emt 0:00:11]} 7. e4 {[%emt 0:01:07]} O-O {[%emt 0:00:15] is now more promising than 7...c5. A05: Réti Opening: 1 Nf3 Nf6.} 8. e5 {[%emt 0:01:33]} (8. exd5 $11 Bxd5 9. b3) 8... Nfd7 $1 $15 {[%emt 0:00:05]} 9. Re1 {[%emt 0:00:05]} c5 {[%emt 0:00:20] Black is slightly better.} 10. Nf1 {[%emt 0:00:27][%cal Bd2f1,Bf1h2,Bh2g4,Bg4e3][%mdl 32]} a5 {[%emt 0:01:30]} 11. h4 {[%emt 0:00:24]} b4 {[%emt 0:02:13]} 12. N1h2 {[%emt 0:01:48]} Nc6 {[%emt 0:00:33]} 13. Bf4 {[%emt 0:08:18]} a4 {[%emt 0:01:40]} 14. a3 {[%emt 0:02:52]} bxa3 {[%emt 0:06:23]} 15. bxa3 {[%emt 0:00:29]} Ba6 {[%emt 0:02:01]} 16. Ng4 {[%emt 0:05:24] [#]} c4 $146 {[%emt 0:07:27]} ({Predecessor:} 16... Rb8 17. Ng5 Qe8 18. c4 Nb6 19. cxd5 Nxd5 20. Bxd5 exd5 21. e6 f6 22. Nf7 Rb3 {0-1 (40) Mortazavi,A (2333)-Eswaran,A (2244) Chess.com INT 2021}) 17. d4 {[%emt 0:09:16][%cal Bd3d4,Bd4e5][%mdl 32]} c3 {[%emt 0:12:40]} 18. Bg5 {[%emt 0:16:51]} h5 $2 {[%emt 0:13:27]} ({Black should play} 18... Rb8 $11) 19. Ne3 {[%emt 0:04:08]} f6 {[%emt 0:03:31]} (19... Nb6 $16) 20. exf6 $18 {[%emt 0:00:23]} Nxf6 {[%emt 0:00:11]} 21. Ne5 {[%emt 0:00:49]} Nxe5 {[%emt 0:07:35]} 22. dxe5 {[%emt 0:00:08]} Ng4 {[%emt 0:00:51]} 23. Bxe7 {[%emt 0:08:20]} (23. Nxg4 $18 {[%cal Og4f6] Black must now prevent Nf6+!} Bxg5 24. hxg5 hxg4 25. Qxg4) 23... Qxe7 $16 {[%emt 0:00:08]} 24. Nxg4 {[%emt 0:02:13]} hxg4 {[%emt 0:00:05]} 25. Qxg4 {[%emt 0:00:05]} Qf7 {[%emt 0:04:13]} 26. f4 {[%emt 0:00:38]} (26. Qd4 $142) 26... Rad8 {[%emt 0:00:48]} (26... Rab8 $16) 27. Bh3 {[%emt 0:01:20]} (27. Rab1 $18) 27... Qa7+ {[%emt 0:00:56]} (27... Rfe8 $1 $14) 28. Kh1 {[%emt 0:01:03]} (28. Kh2 $18) 28... Rf5 $2 {[%emt 0:00:55][%mdl 8192]} (28... Rfe8 $16) 29. Qf3 $2 {[%emt 0:05:41]} (29. Qg6 $18 {is the precise move to win.}) 29... d4 {[%emt 0:00:56] aiming for ...Bb7.} 30. Bxf5 {[%emt 0:00:50]} exf5 {[%emt 0:00:05]} 31. Rab1 {[%emt 0:00:27] Prevents Bb7.} (31. Qf2 $16) 31... d3 $11 {[%emt 0:00:43]} 32. cxd3 {[%emt 0:13:28] And now Qc6 would win.} c2 {[%emt 0:01:06]} 33. Rb4 {[%emt 0:00:27][%mdl 8192]} (33. Rb2 $11) 33... Rxd3 $19 {[%emt 0:00:33]} 34. Qc6 {[%emt 0:00:14] [#]} Kh7 $2 {[%emt 0:02:40]} (34... Qd7 $1 $19 {[%cal Rd7c6]} 35. Qxd7 (35. Qxa6 Qd5+) (35. Qxc2 $2 Rd2 $19) (35. Qxa4 Bb7+ 36. Kh2 Rd2+ 37. Kg1 Rg2+ 38. Kh1 Re2+) 35... Rxd7 36. Rb8+ (36. Rxa4 Rd1 37. Kh2 Rxe1 38. Rxa6 c1=Q 39. Ra8+ Kh7) 36... Kh7) 35. Qxc2 $11 {[%emt 0:00:31]} ({Not} 35. Rb6 $2 Rxg3 36. Kh2 (36. Rxa6 {gets mated.} Qf2) 36... Rg4 $19) 35... Qd7 {[%emt 0:01:54][%mdl 8192]} (35... Rxg3 $11 36. Qxf5+ g6) 36. e6 $18 {[%emt 0:04:39]} Bb7+ {[%emt 0:01:50] [#]} 37. Rxb7 $1 {[%emt 0:00:55]} Qxb7+ {[%emt 0:00:05][%mdl 4096] Endgame KQR-KQR} 38. Qg2 {[%emt 0:00:27]} (38. Kh2 $142 Qf3 39. Qg2 Qxg2+ 40. Kxg2) 38... Qe7 {[%emt 0:00:10]} 39. Kh2 {[%emt 0:02:18]} Rxa3 {[%emt 0:00:36]} 40. Qd5 {[%emt 0:00:38]} Qf6 {[%emt 0:12:57]} (40... g6 41. Qc4 Rb3 42. Qxa4 Rb6) 41. h5 {[%emt 0:38:57] Threatening mate with e7.} Qb2+ {[%emt 0:33:19]} 42. Qg2 $2 {[%emt 0:00:00]} (42. Kh3 {White threatens e7 and mate.} Qf2 43. Qxf5+ Kh8 44. Qf8+ Kh7 45. Qxa3 Qxe1 46. Qd3+ Kh8 47. Qd7) 42... Qb8 $2 {[%emt 0:00:00]} (42... Ra2 $18 43. Qxb2 Rxb2+ 44. Kh3 Rb8) 43. Qc2 {[%emt 0:00:00] White mates.} g6 {[%emt 0:00:00]} 44. e7 {[%emt 0:00:00]} Qe8 {[%emt 0:00:00]} 45. Qb2 {[%emt 0:00:00]} Rd3 {[%emt 0:00:00]} 46. Qf6 {[%emt 0:00:00]} Rd2+ {[%emt 0:00:00]} 47. Kh3 {[%emt 0:00:00]} gxh5 {[%emt 0:00:00]} 48. Re6 {[%emt 0:00:00] Weighted Error Value: White=0.79/Black=0.61} 1-0

[Event "34th GER-ch Seniors-65 2022"]
[Site "Magdeburg"]
[Date "2022.08.15"]
[Round "4.11"]
[White "Ehlert, Horst"]
[Black "Gruzmann, Boris"]
[Result "1/2-1/2"]
[ECO "E62"]
[WhiteElo "2011"]
[BlackElo "2173"]
[Annotator "TA"]
[PlyCount "89"]
[EventDate "2022.08.12"]
[EventType "swiss"]
[EventCountry "GER"]
[SourceTitle "playchess.com"]
[Source "ChessBase"]
[SourceQuality "1"]
[TimeControl "40/5400+30:1800+30"]

{[%evp 14,89,24,0,0,0,0,0,10,7,27,9,23,21,30,27,16,6,15,14,11,14,22,13,47,-31,43,54,50,42,39,44,106,30,30,45,44,47,36,33,54,29,29,-85,-27,-20,24,23,30,24,23,23,23,23,23,24,25,10,31,24,18,23,22,8,8,13,15,8,28,8,8,0,0,0,0,0,0,-8]} 1. d4 {[%emt 0:01:10]} Nf6 {[%emt 0:00:16]} 2. Nf3 {[%emt 0:00:50]} g6 {[%emt 0:00:15]} 3. c4 {[%emt 0:03:06]} Bg7 {[%emt 0:00:13]} 4. Nc3 {[%emt 0:00:35]} O-O {[%emt 0:00:15]} 5. g3 {[%emt 0:00:41]} d6 {[%emt 0:00:13]} 6. Bg2 {[%emt 0:00:40]} Nc6 {[%emt 0:00:15]} 7. d5 {[%emt 0:03:36]} Na5 {[%emt 0:00:25]} 8. Nd2 {[%emt 0:15:52] 8.b3 is more fashionable.} c6 {[%emt 0:01:00] E62: King's Indian: Fianchetto: 6...c6 and Panno Variation (6...Nc6) without ...a6.} 9. Rb1 {[%emt 0:04:23]} cxd5 {[%emt 0:00:21]} 10. Nxd5 {[%emt 1:04:37]} Bd7 {[%emt 0:02:19]} 11. O-O {[%emt 0:00:00]} Rc8 {[%emt 0:00:26]} 12. b3 {[%emt 0:00:00] [#]} b5 $146 {[%emt 0:01:39][%cal Rb5c4]} ({Predecessor:} 12... Nxd5 13. cxd5 b5 14. Bb2 Bxb2 15. Rxb2 b4 16. Nf3 Qb6 17. Qd2 Qc5 18. Nd4 Qc3 19. Qxc3 Rxc3 {0-1 (41) Borisova,B (2160)-Richtrova,E Bad Kissingen 1982}) 13. Nxf6+ {[%emt 0:00:00]} Bxf6 {[%emt 0:00:17]} 14. cxb5 {[%emt 0:00:00]} Bxb5 {[%emt 0:00:21]} 15. Ne4 {[%emt 0:00:00]} Bg7 {[%emt 0:00:14]} 16. Bb2 {[%emt 0:00:00]} Qb6 {[%emt 0:02:06]} 17. Bxg7 {[%emt 0:00:00]} Kxg7 {[%emt 0:02:57]} 18. Qd2 {[%emt 0:00:00]} Nc6 {[%emt 0:04:31]} 19. Bh3 {[%emt 0:00:00]} (19. a4 $14 Ba6 20. b4) 19... Rcd8 {[%emt 0:05:16]} (19... Nd4 $1 $15 20. Bxc8 Rxc8) 20. a4 $14 {[%emt 0:00:00]} Ba6 {[%emt 0:00:15]} 21. b4 {[%emt 0:00:00] [#] Black must now prevent b5.} Bc8 {[%emt 0:05:30]} 22. Bg2 {[%emt 0:00:00]} Qd4 {[%emt 0:06:52]} (22... Bf5 $14) 23. Rfc1 {[%emt 0:00:00]} (23. Qc1 $16 d5 24. e3 (24. Qxc6 dxe4 25. Qxe4 Bf5 $14)) 23... Qxd2 $11 {[%emt 0:07:47]} 24. Nxd2 {[%emt 0:00:00]} Nd4 {[%emt 0:00:14]} 25. Kf1 {[%emt 0:00:00]} Bf5 {[%emt 0:09:32]} 26. e4 {[%emt 0:00:00]} Be6 {[%emt 0:00:10]} 27. Rc7 {[%emt 0:00:00]} Rd7 {[%emt 0:00:29]} 28. Rbc1 {[%emt 0:00:00] [#]} (28. Rc3 $11 {keeps the balance.}) 28... Rxc7 {[%emt 0:00:13]} ({Black should play} 28... a6 $1 $17 29. Nf3 Nxf3 30. Bxf3 Rb8 31. Rxd7 Bxd7) 29. Rxc7 {[%emt 0:00:00]} Rc8 {[%emt 0:00:07]} (29... a6 $5 {[%cal Rf8b8]}) 30. Rxc8 {[%emt 0:00:00]} Bxc8 {[%emt 0:00:07][%mdl 4096] Endgame KBN-KBN} 31. f4 {[%emt 0:01:39]} a6 {[%emt 0:08:24]} 32. Kf2 {[%emt 0:02:36]} Bd7 {[%emt 0:00:13]} 33. Bf1 {[%emt 0:00:17]} Bxa4 {[%emt 0:02:48]} 34. Bxa6 {[%emt 0:00:10]} Kf8 {[%emt 0:01:10]} 35. Nb1 {[%emt 0:05:01]} Bb5 {[%emt 0:20:17]} 36. Bxb5 {[%emt 0:00:42]} Nxb5 $14 {[%emt 0:00:10] KN-KN} 37. Ke3 {[%emt 0:00:03]} Ke8 {[%emt 0:00:15]} 38. Kd3 {[%emt 0:00:35]} Kd7 {[%emt 0:00:10]} 39. g4 {[%emt 0:01:25]} Kc6 {[%emt 0:04:13]} 40. Kc4 {[%emt 0:00:15]} e6 {[%emt 0:00:32]} 41. g5 {[%emt 0:07:18]} d5+ {[%emt 0:01:20] The position is equal.} 42. exd5+ {[%emt 0:00:18]} exd5+ {[%emt 0:00:11]} 43. Kd3 {[%emt 0:00:16]} Nc7 {[%emt 0:00:20]} 44. Kd4 {[%emt 0:07:03]} Kd6 {[%emt 0:00:12]} 45. Ke3 {[%emt 0:19:52] Weighted Error Value: White=0.17 (very precise) /Black=0.13 (very precise)} 1/2-1/2